bitfinex/quotes_ETHUSD_20250422
["timestamp","ask_amount","ask_price","bid_price","bid_amount"]
[1745327763918,5.28984915,1641.3,1640.3,0.76115586]
[1745327763919,6.09438524,1640.9,1640.3,0.76115586]
[1745327764112,6.09600273,1640.5,1640.3,0.15855586]
[1745327764311,6.09607412,1640.4,1639.8,0.91435185]
[1745327764522,6.8391,1640.8,1639.9,0.1493555]
[1745327764732,6.576,1640.7,1639.9,0.1493555]
[1745327764905,11.86584915,1640.7,1639.9,0.1493555]
[1745327765234,6.09584979,1640.5,1639.9,0.21032679]
[1745327765440,6.09584979,1640.5,1639.9,0.1493555]
[1745327765602,6.09584979,1640.5,1639.9,3.1493555]
[1745327765807,6.09584979,1640.5,1639.9,0.1493555]
[1745327766111,6.09676294,1640.3,1639.9,0.1493555]
[1745327766422,6.09751105,1640.1,1639.4,6.026]
[1745327766600,6.09756169,1640.0,1639.5,3.0]
[1745327766801,6.09878003,1639.7,1639.5,0.14479749]
[1745327766996,6.09759552,1640.0,1639.5,0.14479749]
[1745327767237,6.09759552,1640.0,1639.0,6.026]
[1745327767432,0.55,1640.2,1639.1,3.71415947]
[1745327767635,6.10053684,1639.2,1639.1,0.26186453]
[1745327767835,6.10053684,1639.2,1639.1,0.15030506]
[1745327768034,7.0801,1639.7,1638.5,6.267]
[1745327768237,7.0801,1639.7,1638.6,5.40144267]
[1745327768238,6.09925097,1639.6,1638.6,5.40144267]
[1745327768436,6.09942662,1639.5,1638.7,3.11158671]
[1745327768645,6.09994176,1639.4,1638.8,0.31115867]
[1745327768942,6.09994176,1639.4,1638.8,0.45624733]
[1745327769129,6.10031246,1639.3,1638.8,0.14508866]
[1745327769328,6.100358,1639.3,1638.8,0.14508866]
[1745327769709,6.100358,1639.3,1638.8,3.14508866]
[1745327769939,6.10061881,1639.2,1638.8,0.14508866]
[1745327770241,6.10145336,1639.0,1638.4,0.5]
[1745327770451,0.61014534,1639.0,1638.4,0.5]
[1745327770604,6.10226601,1638.8,1638.5,0.1508942]
[1745327771040,6.91072792,1639.1,1638.5,0.1508942]
[1745327771354,0.8097,1639.1,1638.5,0.1508942]
[1745327771556,6.9094926,1639.4,1638.5,0.21192267]
[1745327771857,6.9094926,1639.4,1638.7,3.0]
[1745327771858,6.90951001,1639.4,1638.7,3.0]
[1745327772178,6.10021103,1639.3,1638.9,3.0]
[1745327772372,6.10071115,1639.2,1638.8,0.15605974]
[1745327772562,6.10090903,1639.1,1639.0,0.15652821]
[1745327772760,6.10082764,1639.2,1638.7,3.0]
[1745327772952,12.20173596,1639.2,1639.0,0.15293059]
[1745327773140,7.39010035,1639.2,1638.7,3.0]
[1745327773342,7.39010035,1639.2,1638.8,0.15371351]
[1745327773549,6.10075267,1639.2,1638.8,0.15371351]
[1745327773754,6.10091209,1639.1,1638.7,3.0]
[1745327773959,6.10091209,1639.1,1638.6,6.269]
[1745327773960,6.10132363,1639.0,1638.4,0.5]
[1745327774153,6.1026408,1638.7,1638.4,0.5]
[1745327774352,6.10227129,1638.8,1638.4,0.5]
[1745327774353,6.10314106,1638.6,1638.4,0.5]
[1745327774586,6.10314311,1638.5,1638.4,0.5]
[1745327775085,6.10633621,1637.7,1637.1,0.5001]
[1745327775299,6.10463341,1638.1,1637.1,0.5001]
[1745327775300,0.7672,1637.8,1637.1,0.5001]
[1745327775588,6.10927625,1636.9,1636.4,0.02]
[1745327775782,6.05704915,1637.4,1636.4,0.02]
[1745327775783,6.11025184,1636.6,1636.4,0.02]
[1745327775985,6.11060189,1636.5,1636.4,0.02]
[1745327776205,11.95045104,1636.5,1636.4,0.02]
[1745327776357,12.71765104,1636.5,1636.4,0.02]
[1745327777192,7.42780189,1636.5,1636.4,0.02]
[1745327777552,6.66134877,1636.3,1636.2,0.4044592]
[1745327777795,6.66134877,1636.3,1635.2,6.273]
[1745327777796,6.11375604,1635.7,1635.2,6.273]
[1745327778085,6.11380811,1635.7,1635.2,6.273]
[1745327778247,1.3172,1635.9,1635.2,6.273]
[1745327778505,6.11376379,1635.7,1634.9,0.5001]
[1745327778646,6.11398099,1635.6,1634.8,20.12]
[1745327778847,6.66488145,1635.4,1634.8,2.012]
[1745327779187,0.6113981,1635.5,1634.6,0.4044592]
[1745327779390,0.7672,1636.0,1635.0,0.5001]
[1745327779601,1.27724456,1636.3,1635.1,23.18113141]
[1745327779809,0.7672,1636.4,1635.1,23.12]
[1745327779810,6.87842791,1636.4,1635.1,23.12]
[1745327779949,0.55,1636.3,1635.3,3.0]
[1745327780144,6.66152906,1636.3,1635.4,0.0611363]
[1745327780480,0.55,1635.9,1635.1,26.393]
[1745327780657,0.55,1635.9,1635.2,0.06113629]
[1745327780857,0.55,1635.9,1635.1,26.393]
[1745327780858,0.7672,1635.7,1635.1,20.12]
[1745327781049,0.7672,1635.7,1635.2,3.0]
[1745327781498,0.7672,1635.7,1635.1,20.12]
[1745327781499,6.11427041,1635.6,1635.1,20.12]
[1745327781797,6.11527425,1635.3,1634.7,6.277]
[1745327781946,6.11527055,1635.3,1634.7,6.277]
[1745327782143,0.55,1635.2,1634.7,0.66814592]
[1745327782347,6.11482126,1635.4,1634.6,6.6814592]
[1745327782547,6.66448275,1635.5,1634.6,6.6814592]
[1745327782899,0.7672,1635.7,1634.7,3.06116019]
[1745327783070,0.7672,1635.7,1634.8,0.06115072]
[1745327783271,6.11518768,1635.3,1634.6,0.4044592]
[1745327783485,0.61151877,1635.3,1634.6,6.6844592]
[1745327783787,0.7672,1635.0,1634.6,0.4044592]
[1745327783990,6.11663986,1634.9,1634.6,0.4044592]
[1745327784367,0.7672,1635.0,1634.6,0.4044592]
[1745327784683,6.88345482,1635.0,1634.6,0.4044592]
[1745327784890,0.7672,1635.0,1634.6,0.4044592]
[1745327785090,0.7672,1635.3,1634.7,6.28]
[1745327785271,12.23612168,1635.9,1634.7,6.28]
[1745327785272,0.7766,1635.8,1634.9,0.5001]
[1745327785472,6.11224086,1636.1,1635.0,0.06114794]
[1745327785798,0.7766,1636.1,1635.2,3.0]
[1745327785958,6.11150038,1636.3,1635.2,3.0]
[1745327786155,0.61115004,1636.2,1635.4,3.0]
[1745327786380,6.06644915,1636.4,1635.5,0.15486806]
[1745327786584,6.11373942,1635.7,1635.5,0.15486806]
[1745327786794,6.11373942,1635.7,1634.6,21.0485592]
[1745327786795,9.89056885,1635.6,1634.6,21.0485592]
[1745327786973,6.11695275,1634.9,1634.6,0.4044592]
[1745327787185,6.66549462,1635.2,1634.6,0.4044592]
[1745327787509,6.11642236,1635.0,1634.6,0.4044592]
[1745327787710,6.11445666,1635.5,1634.6,6.9294592]
[1745327787996,6.11546903,1635.2,1634.6,6.9294592]
[1745327788164,0.7766,1635.1,1634.6,0.4044592]
[1745327788497,0.55,1635.3,1634.6,0.4044592]
[1745327788803,6.11556184,1635.2,1634.7,6.525]
[1745327789186,6.11556184,1635.2,1634.6,0.4044592]
[1745327789187,6.66527115,1635.3,1634.6,0.4044592]
[1745327789385,12.63888728,1635.7,1634.6,0.4044592]
[1745327789386,0.7766,1635.8,1634.8,3.0]
[1745327789779,6.11380189,1635.7,1634.8,3.0]
[1745327790183,6.11373145,1635.7,1634.8,3.0]
[1745327790493,6.11461866,1635.5,1634.8,3.0]
[1745327791031,6.11574346,1635.2,1634.9,6.527]
[1745327791184,6.1159741,1635.1,1634.9,6.527]
[1745327791388,6.11574346,1635.2,1634.9,6.527]
[1745327791708,6.11437803,1635.5,1634.9,6.527]
[1745327791909,6.11437803,1635.5,1635.0,3.0]
[1745327792208,6.11535334,1635.3,1634.7,20.6441]
[1745327792407,6.72694014,1635.3,1634.8,3.0]
[1745327792617,6.11558881,1635.2,1634.7,27.1721]
[1745327792906,6.11589699,1635.1,1634.7,26.672]
[1745327793107,0.61153533,1635.3,1634.7,26.672]
[1745327793312,6.11416727,1635.6,1634.8,3.0]
[1745327793480,6.1144079,1635.5,1634.8,3.0]
[1745327793671,7.04442006,1635.6,1634.9,0.06115723]
[1745327793880,0.61141673,1635.6,1634.8,3.5001]
[1745327794076,12.22915826,1635.5,1634.8,3.5001]
[1745327794295,0.55,1635.3,1634.8,3.5001]
[1745327794505,6.11620795,1635.0,1634.9,0.11973155]
[1745327794773,6.11608179,1635.1,1634.8,6.528]
[1745327795087,6.8922726,1635.2,1634.9,0.1212765]
[1745327795294,0.7766,1635.2,1634.9,0.1212765]
[1745327795475,6.89231215,1635.2,1634.8,6.528]
[1745327795675,6.11523513,1635.3,1634.8,9.1952]
[1745327795905,6.11546073,1635.2,1634.8,9.1952]
[1745327796094,0.55,1635.3,1634.8,9.1952]
[1745327796299,6.11530602,1635.3,1634.8,9.1952]
[1745327796609,6.1156542,1635.2,1634.8,6.528]
[1745327796807,6.1148312,1635.4,1634.8,6.528]
[1745327797007,0.55,1635.4,1634.8,6.528]
[1745327797216,6.11545033,1635.3,1634.8,6.528]
[1745327797424,0.55,1635.4,1634.8,6.528]
[1745327797602,6.11556872,1635.2,1634.8,6.528]
[1745327797802,6.1160034,1635.1,1634.8,6.528]
[1745327797997,6.1160034,1635.1,1634.9,0.11365839]
[1745327798308,6.11527552,1635.3,1634.8,6.64197998]
[1745327798509,6.11586361,1635.1,1634.8,6.528]
[1745327798719,6.11586361,1635.1,1634.8,0.11390808]
[1745327798913,3.7766,1635.5,1634.8,0.11390808]
[1745327799126,12.23084373,1635.3,1634.7,26.674]
[1745327799322,6.11600655,1635.1,1634.7,26.674]
[1745327799707,6.11561659,1635.2,1634.8,0.11390808]
[1745327800531,6.11529662,1635.3,1634.8,2.79269889]
[1745327800734,6.89111874,1635.5,1634.8,5.67879081]
[1745327800933,6.11414501,1635.6,1634.9,3.0]
[1745327801141,6.11414501,1635.6,1634.6,0.4044592]
[1745327801142,12.17986346,1635.8,1634.6,0.4044592]
[1745327801299,6.11601674,1635.1,1634.6,0.4044592]
[1745327801493,6.11529408,1635.3,1634.6,0.4044592]
[1745327801698,3.0,1635.7,1634.7,0.5001]
[1745327801699,6.11457068,1635.5,1634.7,0.5001]
[1745327802009,6.11459956,1635.5,1634.9,3.0]
[1745327802196,12.22927526,1635.5,1634.9,3.0]
[1745327802397,12.22841976,1635.6,1635.0,0.06115745]
[1745327802634,6.11434477,1635.5,1635.0,0.30611575]
[1745327804026,6.11415802,1635.6,1635.0,0.36726872]
[1745327804332,6.11337691,1635.8,1635.1,0.5001]
[1745327804539,6.11345005,1635.8,1635.3,3.0]
[1745327804746,6.11370671,1635.7,1635.3,3.0]
[1745327804959,6.11370671,1635.7,1634.9,25.44884915]
[1745327804960,0.55,1635.5,1634.8,0.5001]
[1745327805158,6.11563674,1635.2,1634.8,0.5001]
[1745327805454,6.11673772,1634.9,1634.7,6.53]
[1745327805809,6.11633186,1635.0,1634.6,0.4044592]
[1745327806156,6.11675104,1634.9,1634.6,6.9344592]
[1745327806535,6.66733039,1634.7,1634.6,0.4044592]
[1745327806709,6.11733039,1634.7,1634.6,0.4044592]
[1745327807039,12.23435988,1634.8,1634.6,0.4044592]
[1745327807245,6.11712791,1634.8,1634.6,0.4044592]
[1745327807807,6.11679821,1634.9,1634.6,0.4044592]
[1745327808410,6.11696507,1634.8,1634.6,0.4044592]
[1745327808611,0.8018,1635.2,1634.6,0.9045592]
[1745327808833,3.8018,1635.2,1634.6,0.4044592]
[1745327809142,6.11697439,1634.8,1634.6,0.4044592]
[1745327809949,6.11679093,1634.9,1634.6,0.4044592]
[1745327810339,6.11708471,1634.8,1634.6,0.4044592]
[1745327810545,6.66733039,1634.7,1634.6,0.4044592]
[1745327810913,6.11708471,1634.8,1634.6,0.4044592]
[1745327811114,6.11632708,1635.0,1634.6,0.4044592]
[1745327811345,6.11711276,1634.8,1634.6,0.4044592]
[1745327811541,6.11733039,1634.7,1634.6,0.4044592]
[1745327812140,6.66733039,1634.7,1634.6,0.4044592]
[1745327813965,6.66733039,1634.7,1634.3,7.0301]
[1745327813966,0.55,1634.6,1633.3,1.45574389]
[1745327814266,6.12051248,1633.9,1633.3,7.0321]
[1745327814467,6.12015093,1634.0,1633.3,7.0321]
[1745327814781,6.12096271,1633.8,1633.3,7.0321]
[1745327815132,6.12051711,1633.9,1633.3,8.03531]
[1745327815332,6.12124753,1633.7,1633.3,7.0321]
[1745327815937,6.12092062,1633.8,1633.3,7.0321]
[1745327816137,6.12049281,1633.9,1633.3,0.5001]
[1745327816333,6.12049281,1633.9,1633.4,6.64]
[1745327816533,12.24185702,1633.8,1633.4,6.64]
[1745327816767,6.12085018,1633.8,1633.4,6.64]
[1745327816968,6.12052904,1633.9,1633.4,6.64]
[1745327817262,6.12234023,1633.4,1632.9,0.4044592]
[1745327817463,6.12151164,1633.6,1632.9,0.4044592]
[1745327817762,6.12174255,1633.6,1632.9,3.4044592]
[1745327817964,6.67122334,1633.7,1632.9,3.4044592]
[1745327818267,6.67122334,1633.7,1632.9,1.45911512]
[1745327818268,0.66712233,1633.6,1632.9,1.45911512]
[1745327818473,6.7886249,1633.6,1632.9,1.45911512]
[1745327818629,0.66712233,1633.6,1632.9,4.45911512]
[1745327818979,0.8018,1634.5,1633.2,5.28984915]
[1745327819181,6.11910374,1634.3,1633.6,3.5001]
[1745327819487,6.12010218,1634.0,1633.6,0.5001]
[1745327819648,6.12083544,1633.8,1633.4,3.0]
[1745327819850,2.02592561,1633.8,1632.9,1.45911512]
[1745327820184,6.12247035,1633.4,1632.9,0.4044592]
[1745327820387,9.12154131,1633.6,1633.0,0.06123571]
[1745327820388,6.12168423,1633.6,1633.0,0.06123571]
[1745327820542,0.8018,1633.8,1633.1,0.5001]
[1745327820543,6.92263057,1633.8,1633.1,0.5001]
[1745327820741,0.31925949,1634.0,1633.1,0.5001]
[1745327820992,0.31925949,1634.0,1633.2,8.35106569]
[1745327821292,0.31925949,1634.0,1633.7,0.5001]
[1745327821588,0.31925949,1634.0,1633.9,3.0]
[1745327821754,0.31925949,1634.0,1633.9,8.78994915]
[1745327821940,0.8018,1635.3,1634.2,3.0]
[1745327822141,0.2,1636.2,1634.7,3.0]
[1745327822142,0.31902058,1635.5,1634.7,3.0]
[1745327822336,1.04252188,1635.5,1634.8,6.643]
[1745327822573,0.8018,1635.6,1634.9,3.0]
[1745327822749,6.91598585,1635.6,1634.9,3.0]
[1745327822946,12.22767163,1635.7,1635.0,0.5001]
[1745327823148,6.11492773,1635.4,1635.0,0.5001]
[1745327823365,6.115709,1635.2,1634.9,9.643]
[1745327823658,6.11498153,1635.4,1634.9,3.0]
[1745327823893,6.11403562,1635.6,1634.9,3.0]
[1745327824182,12.22903831,1635.5,1635.0,6.643]
[1745327824378,6.11382583,1635.7,1635.0,7.6073]
[1745327824541,6.11379009,1635.7,1635.0,7.6073]
[1745327824745,6.11401172,1635.6,1635.0,7.6073]
[1745327825042,6.11379009,1635.7,1635.0,7.6073]
[1745327825043,6.11374013,1635.7,1635.0,7.6073]
[1745327825241,6.11378261,1635.7,1635.0,7.6073]
[1745327825441,0.8018,1635.9,1635.1,0.76073]
[1745327825675,0.8018,1635.9,1635.2,0.5001]
[1745327825861,6.11351309,1635.8,1635.2,0.5001]
[1745327826063,6.11287122,1635.9,1635.2,0.5001]
[1745327826272,6.11263735,1636.0,1635.2,0.5001]
[1745327826456,1.22250018,1636.0,1635.2,0.926183]
[1745327826779,6.1126687,1636.0,1635.3,0.06114396]
[1745327826939,6.1126687,1636.0,1635.4,6.641]
[1745327827137,6.11230565,1636.1,1635.4,6.641]
[1745327827377,6.11310598,1635.9,1635.4,6.641]
[1745327827560,0.8018,1636.2,1635.5,3.0]
[1745327827747,0.8018,1636.5,1635.6,0.5001]
[1745327827963,0.8018,1636.8,1635.7,3.06112457]
[1745327828159,6.11010107,1636.7,1635.9,3.5001]
[1745327828465,6.11119235,1636.4,1635.9,3.5001]
[1745327828665,6.11150047,1636.3,1636.0,6.64]
[1745327828838,6.11136328,1636.3,1636.0,6.64]
[1745327829039,6.11078026,1636.5,1636.0,6.64]
[1745327829277,0.8018,1636.8,1636.1,3.0]
[1745327829444,6.11025205,1636.6,1636.1,3.0]
[1745327829779,6.91141206,1636.8,1636.1,3.0]
[1745327829950,6.10893278,1637.0,1636.2,0.06111352]
[1745327830154,6.10917773,1636.9,1636.3,0.5001]
[1745327830378,6.10917773,1636.9,1636.4,6.64]
[1745327830379,6.7200955,1636.9,1636.4,6.64]
[1745327830879,6.10965873,1636.8,1636.4,6.64]
[1745327831264,6.10989825,1636.7,1636.4,6.64]
[1745327831638,6.11025497,1636.6,1636.3,7.1381]
[1745327831842,6.11062503,1636.5,1636.3,7.1381]
[1745327832042,0.55,1636.4,1636.0,0.5001]
[1745327832292,6.11200636,1636.2,1635.7,7.1381]
[1745327832644,6.11151369,1636.3,1635.7,7.1381]
[1745327832843,6.1117287,1636.2,1635.8,6.638]
[1745327833045,6.11261824,1636.0,1635.7,7.1381]
[1745327833245,6.11310572,1635.9,1635.0,0.5001]
[1745327833482,0.55,1635.9,1635.1,6.638]
[1745327833677,3.55,1636.1,1635.0,20.6571]
[1745327833878,6.11489545,1635.4,1635.0,0.5001]
[1745327834080,6.11529233,1635.3,1635.0,6.638]
[1745327834377,0.55,1635.3,1634.8,6.637]
[1745327834544,6.66528264,1635.3,1634.8,6.637]
[1745327834744,6.66528264,1635.3,1634.8,7.35071]
[1745327835152,6.11548325,1635.2,1634.8,7.35071]
[1745327835353,12.23064344,1635.3,1634.8,7.35071]
[1745327835577,6.11550281,1635.2,1634.8,7.35071]
[1745327835784,6.11494073,1635.4,1634.8,7.35071]
[1745327835977,6.11349352,1635.8,1635.0,3.5001]
[1745327836167,6.11340147,1635.8,1635.0,3.5001]
[1745327836367,12.22695109,1635.8,1635.0,3.5001]
[1745327836564,6.11340147,1635.8,1635.0,3.5001]
[1745327836795,6.11284308,1635.9,1635.0,3.5001]
[1745327837097,0.61128431,1635.8,1635.1,0.35001]
[1745327837302,0.55,1635.9,1635.1,0.35001]
[1745327837470,6.11348007,1635.8,1635.1,0.35001]
[1745327837669,6.11396429,1635.6,1635.1,0.35001]
[1745327837867,12.22826292,1635.6,1635.0,0.5001]
[1745327838182,12.22825115,1635.6,1635.2,6.637]
[1745327838379,6.11533185,1635.3,1635.0,0.5001]
[1745327838679,5.83984915,1635.7,1635.0,7.1371]
[1745327838878,6.11371979,1635.7,1635.0,7.1371]
[1745327839089,6.11338645,1635.8,1635.1,3.71371]
[1745327839309,6.11287072,1635.9,1635.2,0.5001]
[1745327839457,6.11326302,1635.8,1635.2,0.5001]
[1745327839652,6.1138335,1635.7,1635.2,0.5001]
[1745327839898,6.1138335,1635.7,1635.3,6.637]
[1745327840103,6.11337485,1635.8,1635.3,6.637]
[1745327840299,6.11366941,1635.7,1635.3,6.637]
[1745327840683,6.1134224,1635.8,1635.3,6.637]
[1745327840855,12.73664915,1636.3,1635.4,3.0]
[1745327840856,9.11180372,1636.2,1635.4,3.0]
[1745327841064,6.11266573,1636.0,1635.5,0.5001]
[1745327841796,6.11228762,1636.1,1635.5,0.5001]
[1745327842269,6.1098598,1636.7,1635.7,0.5001]
[1745327842270,0.8098,1636.7,1635.7,0.5001]
[1745327842482,6.11011088,1636.7,1636.0,0.5001]
[1745327842719,6.11013739,1636.7,1636.1,0.06110886]
[1745327843008,6.11147012,1636.3,1636.1,6.637]
[1745327843166,6.11122014,1636.4,1636.1,6.637]
[1745327843591,6.11172228,1636.2,1636.1,6.637]
[1745327843964,6.11284308,1635.9,1635.5,20.156]
[1745327844198,1.22232306,1636.2,1635.6,6.636]
[1745327844199,6.11226872,1636.1,1635.6,6.636]
[1745327844411,6.1124725,1636.0,1635.6,6.636]
[1745327844698,6.11226703,1636.1,1635.5,27.2921]
[1745327844998,6.1128472,1635.9,1635.5,27.2921]
[1745327845487,6.11248503,1636.0,1635.5,20.6561]
[1745327845689,7.33495571,1636.0,1635.5,27.4521]
[1745327846001,6.11330201,1635.8,1635.5,27.4521]
[1745327846197,9.11304712,1635.9,1635.5,27.4521]
[1745327846363,7.33423796,1636.2,1635.5,27.4521]
[1745327846557,3.0,1636.1,1635.5,27.4521]
[1745327846774,1.22232306,1636.2,1635.5,30.19731]
[1745327846975,1.22232306,1636.2,1635.5,27.4521]
[1745327846976,3.0,1636.0,1635.5,27.4521]
[1745327847208,6.11106486,1636.4,1635.5,27.4521]
[1745327847209,1.12339413,1636.7,1635.7,0.5001]
[1745327847408,6.11237752,1636.1,1635.7,0.5001]
[1745327848113,3.0,1636.2,1635.7,0.5001]
[1745327848704,6.11085796,1636.5,1635.8,0.06112426]
[1745327848905,6.11085796,1636.5,1635.7,0.5001]
[1745327848906,7.33298766,1636.5,1635.7,0.5001]
[1745327849214,6.11261262,1636.0,1635.7,0.5001]
[1745327849373,6.11265882,1636.0,1635.7,0.5001]
[1745327849773,6.11299114,1635.9,1635.7,0.5001]
[1745327850079,6.11265882,1636.0,1635.7,0.5001]
[1745327850315,7.33515328,1636.0,1635.7,0.5001]
[1745327851024,6.11303356,1635.9,1635.7,0.5001]
[1745327851188,6.11357226,1635.8,1635.5,20.156]
[1745327851715,6.11396429,1635.6,1635.5,20.156]
[1745327851916,6.11410261,1635.6,1635.3,6.796]
[1745327852603,6.93911105,1635.6,1635.1,0.5001]
[1745327852800,0.82500844,1635.6,1635.2,6.797]
[1745327853116,6.11387338,1635.7,1635.2,6.797]
[1745327853318,6.11483993,1635.4,1635.2,6.797]
[1745327853529,12.20822931,1635.7,1635.2,6.797]
[1745327853729,3.0,1635.6,1635.1,0.5001]
[1745327853879,3.0,1635.6,1635.2,6.797]
[1745327854079,9.11398406,1635.6,1635.2,6.797]
[1745327854482,10.63676048,1635.6,1635.2,6.797]
[1745327854790,6.114726,1635.4,1635.2,6.797]
[1745327855008,6.1145329,1635.5,1635.2,6.797]
[1745327855525,6.11491988,1635.4,1635.2,6.797]
[1745327855827,6.11491988,1635.4,1635.1,0.5001]
[1745327856177,13.45286421,1635.4,1635.0,6.797]
[1745327856496,6.11523076,1635.3,1635.0,6.797]
[1745327856826,1.22294218,1635.4,1635.0,6.797]
[1745327856992,3.0,1635.5,1635.0,6.797]
[1745327857194,0.8046,1635.8,1635.1,0.56125143]
[1745327857424,6.11379622,1635.7,1635.1,1.23592514]
[1745327857815,3.0,1635.7,1635.1,1.23592514]
[1745327858019,6.11448975,1635.5,1635.1,1.23592514]
[1745327858343,6.1144978,1635.5,1635.1,0.5001]
[1745327859055,6.1144978,1635.5,1635.1,7.2971]
[1745327859261,6.66396429,1635.6,1635.1,7.2971]
[1745327859546,6.11463567,1635.5,1635.1,7.2971]
[1745327859716,9.11440197,1635.5,1635.1,7.2971]
[1745327860216,10.63725924,1635.5,1635.1,7.2971]
[1745327860634,4.52285727,1635.5,1635.1,7.2971]
[1745327860837,10.63738364,1635.5,1635.1,7.2971]
[1745327861032,3.0,1635.5,1635.1,7.2971]
[1745327861303,6.11417076,1635.6,1635.1,7.2971]
[1745327861304,6.11374202,1635.7,1635.1,7.2971]
[1745327861617,6.11335601,1635.8,1635.1,7.2971]
[1745327861826,6.11468728,1635.5,1635.1,0.5001]
[1745327862157,6.11460498,1635.5,1635.2,6.798]
[1745327862337,6.72606548,1635.5,1635.2,6.798]
[1745327862536,6.11481672,1635.4,1635.2,6.798]
[1745327862703,0.6114605,1635.5,1635.2,6.798]
[1745327862904,6.11302802,1635.9,1635.2,6.798]
[1745327863227,6.1137802,1635.7,1635.2,6.798]
[1745327864005,6.11342642,1635.8,1635.2,6.798]
[1745327864205,7.02476906,1635.8,1635.2,6.798]
[1745327864644,6.11384701,1635.7,1635.2,6.798]
[1745327864816,10.0248305,1635.8,1635.2,6.798]
[1745327865018,6.11294826,1635.9,1635.2,6.798]
[1745327865325,3.0,1635.9,1635.3,0.5001]
[1745327865537,1.22249446,1636.0,1635.3,0.5001]
[1745327865738,6.11188244,1636.2,1635.5,0.5001]
[1745327865935,6.11260145,1636.0,1635.5,0.5001]
[1745327866324,6.72310307,1636.2,1635.5,0.5001]
[1745327866525,6.11224864,1636.1,1635.5,0.5001]
[1745327866742,6.11247142,1636.0,1635.5,0.5001]
[1745327867040,12.2246418,1636.1,1635.5,0.5001]
[1745327867340,7.39583164,1636.1,1635.5,0.5001]
[1745327867700,8.28984915,1636.0,1635.5,0.5001]
[1745327868205,6.11327904,1635.8,1635.5,0.5001]
[1745327868619,6.11370891,1635.7,1635.5,0.5001]
[1745327868836,12.22684617,1635.8,1635.5,0.5001]
[1745327869042,13.44945214,1635.8,1635.5,0.5001]
[1745327869337,7.33596366,1635.8,1635.5,0.5001]
[1745327869555,7.39594448,1636.1,1635.5,0.5001]
[1745327869842,13.50830896,1636.1,1635.5,0.5001]
[1745327870048,6.11260265,1636.0,1635.5,0.5001]
[1745327871171,7.3958358,1636.1,1635.5,0.5001]
[1745327871454,7.39584871,1636.1,1635.5,0.5001]
[1745327871618,0.73958487,1636.0,1635.5,0.5001]
[1745327871956,6.11369573,1635.7,1635.5,0.5001]
[1745327872618,6.11340592,1635.8,1635.5,0.5001]
[1745327872821,6.1136243,1635.7,1635.5,0.5001]
[1745327873030,6.11340592,1635.8,1635.5,0.5001]
[1745327873546,6.11382214,1635.7,1635.5,0.5001]
[1745327874445,6.11297583,1635.9,1635.5,0.5001]
[1745327874646,6.11323433,1635.8,1635.5,0.5001]
[1745327874943,6.11325293,1635.8,1635.5,0.5001]
[1745327875246,6.11338812,1635.8,1635.5,0.5001]
[1745327876149,6.11365277,1635.7,1635.5,0.5001]
[1745327877186,6.11365277,1635.7,1635.5,7.0551]
[1745327877357,6.11396429,1635.6,1635.5,6.555]
[1745327877543,6.11338979,1635.8,1635.5,6.555]
[1745327877972,6.11375217,1635.7,1635.5,6.555]
[1745327878167,6.11375217,1635.7,1635.4,6.555]
[1745327878478,6.11406477,1635.6,1635.4,6.555]
[1745327878842,7.33645671,1635.7,1635.4,6.555]
[1745327879043,12.22759105,1635.7,1635.4,6.555]
[1745327879457,6.11374251,1635.7,1635.4,6.555]
[1745327879658,12.22761363,1635.7,1635.4,6.555]
[1745327879853,6.11433812,1635.5,1635.4,6.555]
[1745327881082,6.11402168,1635.6,1635.4,6.555]
[1745327881291,6.11375007,1635.7,1635.4,6.555]
[1745327881461,6.11398984,1635.6,1635.4,6.555]
[1745327881659,6.11382772,1635.7,1635.4,6.555]
[1745327882646,12.22771544,1635.7,1635.4,6.555]
[1745327882848,6.11423979,1635.6,1635.4,6.555]
[1745327883090,6.11433812,1635.5,1635.4,6.555]
[1745327885277,12.22847049,1635.6,1635.4,6.555]
[1745327885653,6.11433812,1635.5,1635.4,6.555]
[1745327886662,6.11433812,1635.5,1635.1,0.5001]
[1745327886883,6.11544222,1635.3,1635.0,6.555]
[1745327887189,6.72636261,1635.4,1635.0,6.555]
[1745327887692,6.11326514,1635.8,1635.2,0.5001]
[1745327888098,6.11321677,1635.8,1635.2,0.5001]
[1745327888395,12.22835012,1635.6,1635.2,0.5001]
[1745327888555,6.11411758,1635.6,1635.2,0.5001]
[1745327889255,6.11379655,1635.7,1635.2,0.5001]
[1745327889459,6.11379655,1635.7,1635.2,0.85011]
[1745327889656,6.11321677,1635.8,1635.2,0.5001]
[1745327889884,6.11471199,1635.4,1635.3,6.555]
[1745327890657,6.11417024,1635.6,1635.3,6.555]
[1745327891085,6.11434109,1635.5,1635.3,6.555]
[1745327892008,6.11418866,1635.6,1635.3,6.555]
[1745327892383,6.11442092,1635.5,1635.3,6.555]
[1745327892698,6.11554766,1635.2,1635.0,0.5001]
[1745327892916,11.28068507,1635.2,1634.5,6.556]
[1745327893215,6.11561575,1635.2,1634.6,3.0]
[1745327893513,6.11633496,1635.0,1634.7,0.5001]
[1745327893883,6.11671892,1634.9,1634.6,3.0]
[1745327894086,6.11737802,1634.7,1634.5,6.556]
[1745327894987,12.23438509,1634.8,1634.5,6.556]
[1745327895193,6.11864839,1634.4,1634.1,0.5001]
[1745327895389,6.11920205,1634.2,1634.0,26.714]
[1745327895629,6.11898648,1634.3,1634.0,26.714]
[1745327895927,6.11936852,1634.2,1634.0,26.714]
[1745327896714,6.11957652,1634.1,1634.0,26.714]
[1745327897142,1.22383623,1634.2,1634.0,6.556]
[1745327897296,6.11957652,1634.1,1634.0,6.556]
[1745327897495,6.11938206,1634.2,1634.0,6.556]
[1745327897709,6.11901856,1634.3,1634.0,6.556]
[1745327897990,6.11938509,1634.2,1634.0,6.556]
[1745327898325,6.11957652,1634.1,1634.0,6.556]
[1745327898761,7.34347268,1634.1,1634.0,6.556]
[1745327898938,8.70350259,1634.1,1633.6,6.558]